[Event "*** Titled Tuesday Blitz"]
[Site "Chess.com"]
[Date "2020.12.29"]
[Round "7"]
[White "vlad_Sid"]
[Black "Gabrielian_Artur"]
[Result "1-0"]
[WhiteElo "2589"]
[BlackElo "2769"]
[TimeControl "180+1"]
[EndTime "11:13:26 PST"]
[Termination "vlad_Sid won by resignation"]

1. c4 {[%clk 0:02:47.7]} 1... Nf6 {[%clk 0:02:59.8]} 2. g3 {[%clk 0:02:48.2]}
2... g6 {[%clk 0:03:00.1]} 3. Bg2 {[%clk 0:02:48.7]} 3... Bg7 {[%clk 0:03:00.8]}
4. Nc3 {[%clk 0:02:49.6]} 4... O-O {[%clk 0:03:01.2]} 5. d3 {[%clk 0:02:50.2]}
5... d6 {[%clk 0:03:01.7]} 6. Nf3 {[%clk 0:02:50]} 6... e5 {[%clk 0:03:02.1]} 7.
O-O {[%clk 0:02:50.3]} 7... Nc6 {[%clk 0:03:02.5]} 8. Rb1 {[%clk 0:02:50.4]}
8... a5 {[%clk 0:03:02.6]} 9. a3 {[%clk 0:02:48.8]} 9... Nd4 {[%clk 0:03:02.7]}
10. b4 {[%clk 0:02:47.9]} 10... axb4 {[%clk 0:03:02.5]} 11. axb4 {[%clk
0:02:48.8]} 11... Re8 {[%clk 0:03:00.6]} 12. Nxd4 {[%clk 0:02:48.4]} 12... exd4
{[%clk 0:03:00.5]} 13. Nd5 {[%clk 0:02:49.3]} 13... Nxd5 {[%clk 0:02:59.3]} 14.
cxd5 {[%clk 0:02:50.2]} 14... Bg4 {[%clk 0:02:56.5]} 15. Re1 {[%clk 0:02:49.6]}
15... Qe7 {[%clk 0:02:52.8]} 16. Bf4 {[%clk 0:02:38]} 16... Ra2 {[%clk
0:02:48.8]} 17. Bf3 {[%clk 0:02:37.3]} 17... Qd7 {[%clk 0:02:24.8]} 18. Qb3
{[%clk 0:02:35.5]} 18... Rexe2 {[%clk 0:01:54.6]} 19. Bxg4 {[%clk 0:02:13.4]}
19... Qxg4 {[%clk 0:01:51.1]} 20. Qxa2 {[%clk 0:02:13.1]} 20... Rxa2 {[%clk
0:01:07.2]} 21. Re8+ {[%clk 0:02:11.2]} 21... Bf8 {[%clk 0:01:06.8]} 22. Bh6
{[%clk 0:02:12.1]} 1-0

[Event "*** Titled Tuesday Blitz"]
[Site "Chess.com"]
[Date "2020.12.29"]
[Round "7"]
[White "tjychess"]
[Black "mishanick"]
[Result "1-0"]
[WhiteElo "2743"]
[BlackElo "2965"]
[TimeControl "180+1"]
[EndTime "11:13:35 PST"]
[Termination "tjychess won by resignation"]

1. d4 {[%clk 0:03:00.9]} 1... Nf6 {[%clk 0:02:59.8]} 2. c4 {[%clk 0:03:00.6]}
2... e6 {[%clk 0:02:59.9]} 3. Nf3 {[%clk 0:03:00.3]} 3... d5 {[%clk 0:03:00.6]}
4. Nc3 {[%clk 0:03:00.3]} 4... c5 {[%clk 0:03:01.1]} 5. cxd5 {[%clk 0:03:00.2]}
5... Nxd5 {[%clk 0:03:02]} 6. e4 {[%clk 0:02:58.3]} 6... Nxc3 {[%clk 0:03:02.4]}
7. bxc3 {[%clk 0:02:59.2]} 7... cxd4 {[%clk 0:03:03.3]} 8. cxd4 {[%clk
0:03:00.1]} 8... Bb4+ {[%clk 0:03:03.9]} 9. Bd2 {[%clk 0:03:00.6]} 9... Bxd2+
{[%clk 0:03:04.6]} 10. Qxd2 {[%clk 0:03:01.5]} 10... O-O {[%clk 0:03:05.1]} 11.
Bc4 {[%clk 0:03:02.1]} 11... b6 {[%clk 0:03:05.4]} 12. O-O {[%clk 0:03:01.5]}
12... Bb7 {[%clk 0:03:05.3]} 13. Rfe1 {[%clk 0:03:01.9]} 13... Nd7 {[%clk
0:03:05.5]} 14. Rad1 {[%clk 0:02:59.5]} 14... Nf6 {[%clk 0:03:06]} 15. Qf4
{[%clk 0:02:47.7]} 15... Rc8 {[%clk 0:03:04.1]} 16. Bb3 {[%clk 0:02:46.9]} 16...
Rc3 {[%clk 0:02:45.2]} 17. h3 {[%clk 0:02:22]} 17... Qc7 {[%clk 0:02:16]} 18.
Qxc7 {[%clk 0:02:02.2]} 18... Rxc7 {[%clk 0:02:16.9]} 19. d5 {[%clk 0:02:03.1]}
19... exd5 {[%clk 0:02:08.3]} 20. exd5 {[%clk 0:02:01.8]} 20... Rd7 {[%clk
0:02:08.8]} 21. Ne5 {[%clk 0:01:59.4]} 21... Rd6 {[%clk 0:02:09.1]} 22. Nc6
{[%clk 0:01:27.6]} 22... Bxc6 {[%clk 0:02:04.2]} 23. dxc6 {[%clk 0:01:28.5]}
23... Rxc6 {[%clk 0:02:04.8]} 24. Re7 {[%clk 0:01:28.3]} 24... a6 {[%clk
0:02:00.8]} 25. Rxf7 {[%clk 0:01:25.3]} 1-0

[Event "*** Titled Tuesday Blitz"]
[Site "Chess.com"]
[Date "2020.12.29"]
[Round "7"]
[White "FGHSMN"]
[Black "guillembaches"]
[Result "1-0"]
[WhiteElo "2646"]
[BlackElo "2466"]
[TimeControl "180+1"]
[EndTime "11:13:36 PST"]
[Termination "FGHSMN won by resignation"]

1. e4 {[%clk 0:03:00.9]} 1... c5 {[%clk 0:02:59.8]} 2. Nf3 {[%clk 0:03:00.5]}
2... d6 {[%clk 0:03:00.4]} 3. d4 {[%clk 0:03:00.7]} 3... cxd4 {[%clk 0:03:01]}
4. Nxd4 {[%clk 0:03:01.6]} 4... Nf6 {[%clk 0:03:01.6]} 5. Nc3 {[%clk 0:03:01.6]}
5... Nc6 {[%clk 0:03:02.2]} 6. Be2 {[%clk 0:03:01.5]} 6... e5 {[%clk 0:03:01.9]}
7. Nf3 {[%clk 0:03:00.2]} 7... Be7 {[%clk 0:03:01.8]} 8. Bg5 {[%clk 0:02:58.6]}
8... Be6 {[%clk 0:02:59.4]} 9. Bxf6 {[%clk 0:02:56.5]} 9... Bxf6 {[%clk
0:02:59]} 10. O-O {[%clk 0:02:57.1]} 10... O-O {[%clk 0:02:57.9]} 11. Nd5 {[%clk
0:02:54.7]} 11... Bxd5 {[%clk 0:02:52.4]} 12. Qxd5 {[%clk 0:02:52.5]} 12... Nd4
{[%clk 0:02:49.2]} 13. Nxd4 {[%clk 0:02:36.2]} 13... exd4 {[%clk 0:02:50.1]} 14.
Bd3 {[%clk 0:02:34.2]} 14... Qb6 {[%clk 0:02:41.6]} 15. Rab1 {[%clk 0:02:32.3]}
15... Qc6 {[%clk 0:02:37.1]} 16. Qf5 {[%clk 0:02:28.2]} 16... Qc5 {[%clk
0:02:32.1]} 17. e5 {[%clk 0:02:25.8]} 1-0

[Event "*** Titled Tuesday Blitz"]
[Site "Chess.com"]
[Date "2020.12.29"]
[Round "7"]
[White "rychessmaster1"]
[Black "Godzillator"]
[Result "1-0"]
[WhiteElo "2572"]
[BlackElo "2339"]
[TimeControl "180+1"]
[EndTime "11:13:57 PST"]
[Termination "rychessmaster1 won on time"]

1. d4 {[%clk 0:03:00.9]} 1... d5 {[%clk 0:02:59.6]} 2. Nc3 {[%clk 0:03:01.3]}
2... c6 {[%clk 0:02:59.6]} 3. Bf4 {[%clk 0:03:01.7]} 3... Nf6 {[%clk 0:02:59.2]}
4. e3 {[%clk 0:03:02]} 4... Bg4 {[%clk 0:02:58.8]} 5. f3 {[%clk 0:03:02.1]} 5...
Bh5 {[%clk 0:02:58.6]} 6. g4 {[%clk 0:03:02.6]} 6... Bg6 {[%clk 0:02:58.8]} 7.
h4 {[%clk 0:03:03]} 7... h5 {[%clk 0:02:58.7]} 8. g5 {[%clk 0:03:03.4]} 8...
Nfd7 {[%clk 0:02:58.7]} 9. Bd3 {[%clk 0:03:03]} 9... Bxd3 {[%clk 0:02:58.1]} 10.
cxd3 {[%clk 0:03:03.9]} 10... g6 {[%clk 0:02:58.5]} 11. Nge2 {[%clk 0:03:03.7]}
11... Bg7 {[%clk 0:02:54.5]} 12. Kf2 {[%clk 0:02:59.7]} 12... e5 {[%clk
0:02:52.1]} 13. dxe5 {[%clk 0:02:59.8]} 13... Nxe5 {[%clk 0:02:51.6]} 14. d4
{[%clk 0:03:00.1]} 14... Nc4 {[%clk 0:02:50.3]} 15. b3 {[%clk 0:02:58.1]} 15...
Nd6 {[%clk 0:02:49]} 16. Qd3 {[%clk 0:02:48.5]} 16... Nf5 {[%clk 0:02:46.1]} 17.
Ng3 {[%clk 0:02:41.8]} 17... Nxg3 {[%clk 0:02:46]} 18. Bxg3 {[%clk 0:02:28.2]}
1-0

[Event "*** Titled Tuesday Blitz"]
[Site "Chess.com"]
[Date "2020.12.29"]
[Round "7"]
[White "brunomorado"]
[Black "paulrusan"]
[Result "0-1"]
[WhiteElo "2405"]
[BlackElo "2258"]
[TimeControl "180+1"]
[EndTime "11:14:06 PST"]
[Termination "paulrusan won by resignation"]

1. d4 {[%clk 0:03:00.5]} 1... Nf6 {[%clk 0:02:59.5]} 2. Nc3 {[%clk 0:03:00.2]}
2... d5 {[%clk 0:02:58.1]} 3. Bg5 {[%clk 0:03:00.6]} 3... e6 {[%clk 0:02:55.6]}
4. e4 {[%clk 0:03:00.3]} 4... dxe4 {[%clk 0:02:55.9]} 5. Nxe4 {[%clk 0:03:01.2]}
5... Be7 {[%clk 0:02:56.4]} 6. Bxf6 {[%clk 0:03:01.8]} 6... gxf6 {[%clk
0:02:56.8]} 7. Ne2 {[%clk 0:03:02.5]} 7... f5 {[%clk 0:02:56.4]} 8. N4c3 {[%clk
0:03:02.7]} 8... c5 {[%clk 0:02:52.2]} 9. g3 {[%clk 0:03:02.5]} 9... cxd4 {[%clk
0:02:52]} 10. Qxd4 {[%clk 0:03:02.9]} 10... Qxd4 {[%clk 0:02:50.3]} 11. Nxd4
{[%clk 0:03:03.8]} 11... a6 {[%clk 0:02:50.5]} 12. Bg2 {[%clk 0:03:03.7]} 12...
Bf6 {[%clk 0:02:48.1]} 13. O-O-O {[%clk 0:03:03.6]} 13... Ra7 {[%clk 0:02:42.3]}
14. Rhe1 {[%clk 0:03:03.2]} 14... Kf8 {[%clk 0:02:42.3]} 15. f4 {[%clk
0:03:00.3]} 15... b5 {[%clk 0:02:41.6]} 16. Nf3 {[%clk 0:02:32.2]} 16... Bd7
{[%clk 0:02:13.4]} 17. Ne5 {[%clk 0:02:30.7]} 17... Be8 {[%clk 0:02:11.4]} 18.
Rd6 {[%clk 0:02:11.9]} 18... b4 {[%clk 0:02:10.8]} 19. Rb6 {[%clk 0:02:09.4]}
19... bxc3 {[%clk 0:02:00.9]} 20. Rxb8 {[%clk 0:02:08.9]} 20... cxb2+ {[%clk
0:01:51.1]} 21. Kxb2 {[%clk 0:01:43]} 21... Kg7 {[%clk 0:01:48.9]} 22. c4 {[%clk
0:01:32]} 22... Rc7 {[%clk 0:01:47.4]} 23. Kb3 {[%clk 0:01:26.8]} 23... Ba4+
{[%clk 0:01:39.5]} 24. Kxa4 {[%clk 0:01:26.9]} 24... Rxb8 {[%clk 0:01:39.4]} 25.
Rc1 {[%clk 0:01:16.9]} 25... Bxe5 {[%clk 0:01:33.1]} 26. fxe5 {[%clk 0:01:16.5]}
26... Rc5 {[%clk 0:01:33.4]} 0-1

[Event "*** Titled Tuesday Blitz"]
[Site "Chess.com"]
[Date "2020.12.29"]
[Round "7"]
[White "KetiGrant"]
[Black "Blitzking642"]
[Result "1/2-1/2"]
[WhiteElo "2434"]
[BlackElo "2301"]
[TimeControl "180+1"]
[EndTime "11:14:13 PST"]
[Termination "Game drawn by repetition"]

1. e4 {[%clk 0:03:00.9]} 1... c5 {[%clk 0:02:59.8]} 2. Nf3 {[%clk 0:03:00.1]}
2... Nc6 {[%clk 0:02:59.9]} 3. d4 {[%clk 0:03:00]} 3... cxd4 {[%clk 0:03:00.8]}
4. Nxd4 {[%clk 0:03:00.4]} 4... g6 {[%clk 0:03:01.4]} 5. c4 {[%clk 0:02:59.8]}
5... Nf6 {[%clk 0:03:00.6]} 6. Nc3 {[%clk 0:02:58.3]} 6... d6 {[%clk 0:03:01.1]}
7. Be2 {[%clk 0:02:57.1]} 7... Nxd4 {[%clk 0:03:00.8]} 8. Qxd4 {[%clk
0:02:56.1]} 8... Bg7 {[%clk 0:03:01.3]} 9. Be3 {[%clk 0:02:49.9]} 9... O-O
{[%clk 0:02:59.8]} 10. Qd2 {[%clk 0:02:48.9]} 10... a5 {[%clk 0:02:59.2]} 11.
O-O {[%clk 0:02:47.1]} 11... a4 {[%clk 0:02:56.7]} 12. f3 {[%clk 0:02:45.4]}
12... Qa5 {[%clk 0:02:29.7]} 13. Rab1 {[%clk 0:02:44.2]} 13... Qb4 {[%clk
0:02:03.6]} 14. Rfc1 {[%clk 0:02:41.2]} 14... Be6 {[%clk 0:01:59]} 15. Nd5
{[%clk 0:02:36.5]} 15... Qxd2 {[%clk 0:01:58]} 16. Nxe7+ {[%clk 0:02:34.4]}
16... Kh8 {[%clk 0:01:58.3]} 17. Bxd2 {[%clk 0:02:34.4]} 17... Rfe8 {[%clk
0:01:58.8]} 18. Nd5 {[%clk 0:02:30.8]} 18... Nxd5 {[%clk 0:01:48.4]} 19. cxd5
{[%clk 0:02:30]} 19... Bxd5 {[%clk 0:01:47.3]} 20. Bb5 {[%clk 0:02:29.5]} 20...
Re5 {[%clk 0:01:46.8]} 21. Bc3 {[%clk 0:02:24.6]} 21... Bxa2 {[%clk 0:01:45.9]}
22. Bxe5 {[%clk 0:02:23.6]} 22... Bxe5 {[%clk 0:01:45]} 23. Ra1 {[%clk
0:02:19.2]} 23... Bb3 {[%clk 0:00:44.1]} 24. Rab1 {[%clk 0:02:00.7]} 24... Ba2
{[%clk 0:00:42.6]} 25. Ra1 {[%clk 0:02:00.3]} 25... Bb3 {[%clk 0:00:42.3]} 26.
Rab1 {[%clk 0:01:51.8]} 26... Ba2 {[%clk 0:00:42.2]} 1/2-1/2

[Event "*** Titled Tuesday Blitz"]
[Site "Chess.com"]
[Date "2020.12.29"]
[Round "7"]
[White "klimkoj"]
[Black "Semen_Khanin"]
[Result "0-1"]
[WhiteElo "2580"]
[BlackElo "2791"]
[TimeControl "180+1"]
[EndTime "11:14:47 PST"]
[Termination "Semen_Khanin won by resignation"]

1. e4 {[%clk 0:03:00.9]} 1... c5 {[%clk 0:02:59.4]} 2. Nf3 {[%clk 0:03:01]} 2...
d6 {[%clk 0:02:59]} 3. d4 {[%clk 0:03:01.2]} 3... cxd4 {[%clk 0:02:59.5]} 4.
Nxd4 {[%clk 0:03:02.1]} 4... Nf6 {[%clk 0:03:00]} 5. Nc3 {[%clk 0:03:00.6]} 5...
a6 {[%clk 0:03:00.5]} 6. Be3 {[%clk 0:03:00.1]} 6... e5 {[%clk 0:03:00.2]} 7.
Nb3 {[%clk 0:02:58.8]} 7... Be6 {[%clk 0:03:00.2]} 8. f4 {[%clk 0:02:58.6]} 8...
Ng4 {[%clk 0:02:57]} 9. Bd2 {[%clk 0:02:56.7]} 9... exf4 {[%clk 0:02:55.9]} 10.
Bxf4 {[%clk 0:02:57.6]} 10... Nc6 {[%clk 0:02:55.8]} 11. Qd2 {[%clk 0:02:57]}
11... Be7 {[%clk 0:02:54.6]} 12. O-O-O {[%clk 0:02:56.5]} 12... O-O {[%clk
0:02:51.1]} 13. Nd5 {[%clk 0:02:48.3]} 13... Nge5 {[%clk 0:02:29.8]} 14. h3
{[%clk 0:02:39.6]} 14... Rc8 {[%clk 0:02:28.4]} 15. g4 {[%clk 0:02:36.8]} 15...
Bh4 {[%clk 0:02:26.3]} 16. Kb1 {[%clk 0:02:31.5]} 16... b5 {[%clk 0:02:24.2]}
17. Bg2 {[%clk 0:02:22.9]} 17... Nc4 {[%clk 0:02:22.4]} 18. Qc1 {[%clk
0:02:09.7]} 18... a5 {[%clk 0:02:11.3]} 19. Nd4 {[%clk 0:02:06.5]} 19... Nxd4
{[%clk 0:02:10.6]} 20. Rxd4 {[%clk 0:02:07.4]} 20... b4 {[%clk 0:02:00.4]} 21.
g5 {[%clk 0:01:57.6]} 21... a4 {[%clk 0:01:24.9]} 22. Qf1 {[%clk 0:01:49]} 22...
Bxd5 {[%clk 0:01:21.7]} 23. exd5 {[%clk 0:01:48.8]} 23... Qc7 {[%clk 0:01:13]}
24. Be4 {[%clk 0:01:27.2]} 24... Rfe8 {[%clk 0:01:10.1]} 25. Bc1 {[%clk
0:01:23.9]} 25... Rxe4 {[%clk 0:01:05.4]} 26. Rxe4 {[%clk 0:01:23.7]} 26... Na3+
{[%clk 0:01:05.5]} 27. bxa3 {[%clk 0:01:22.9]} 27... Qxc2+ {[%clk 0:01:05.5]}
28. Ka1 {[%clk 0:01:23]} 28... Qxe4 {[%clk 0:01:01.9]} 29. Qf4 {[%clk
0:01:14.7]} 29... Qxh1 {[%clk 0:00:59.7]} 0-1

[Event "*** Titled Tuesday Blitz"]
[Site "Chess.com"]
[Date "2020.12.29"]
[Round "7"]
[White "TomasKapitanchuk"]
[Black "elextranjero00"]
[Result "1-0"]
[WhiteElo "2461"]
[BlackElo "2595"]
[TimeControl "180+1"]
[EndTime "11:14:47 PST"]
[Termination "TomasKapitanchuk won by resignation"]

1. e4 {[%clk 0:03:00.9]} 1... c5 {[%clk 0:02:56.2]} 2. Nf3 {[%clk 0:03:01.3]}
2... e6 {[%clk 0:02:56.6]} 3. d4 {[%clk 0:03:01]} 3... cxd4 {[%clk 0:02:57]} 4.
Nxd4 {[%clk 0:03:01.9]} 4... a6 {[%clk 0:02:57.4]} 5. c4 {[%clk 0:03:02.3]} 5...
Nf6 {[%clk 0:02:54.2]} 6. Nc3 {[%clk 0:03:02.8]} 6... Qc7 {[%clk 0:02:54.5]} 7.
a3 {[%clk 0:03:03.4]} 7... b6 {[%clk 0:02:53.2]} 8. Be2 {[%clk 0:03:03.1]} 8...
Bb7 {[%clk 0:02:52.6]} 9. f3 {[%clk 0:03:03.5]} 9... d6 {[%clk 0:02:53.1]} 10.
Be3 {[%clk 0:03:03.9]} 10... Be7 {[%clk 0:02:48.9]} 11. Qd2 {[%clk 0:03:04.2]}
11... O-O {[%clk 0:02:48.8]} 12. O-O {[%clk 0:03:04.7]} 12... Nbd7 {[%clk
0:02:46.5]} 13. Rac1 {[%clk 0:03:05.2]} 13... Rac8 {[%clk 0:02:44.4]} 14. Rfd1
{[%clk 0:03:05.7]} 14... Ne5 {[%clk 0:02:44.2]} 15. b4 {[%clk 0:03:03]} 15...
Nfd7 {[%clk 0:02:36.3]} 16. f4 {[%clk 0:02:52.4]} 16... Ng6 {[%clk 0:02:23.7]}
17. f5 {[%clk 0:02:52.5]} 17... exf5 {[%clk 0:02:18.1]} 18. Nd5 {[%clk
0:02:52.1]} 18... Qd8 {[%clk 0:02:12.3]} 19. exf5 {[%clk 0:02:48.4]} 19... Nge5
{[%clk 0:02:06.1]} 20. Nb3 {[%clk 0:02:32.2]} 20... Re8 {[%clk 0:01:51.8]} 21.
Re1 {[%clk 0:02:24.4]} 21... Bxd5 {[%clk 0:01:39]} 22. cxd5 {[%clk 0:02:23.3]}
22... b5 {[%clk 0:01:39.2]} 23. Na5 {[%clk 0:02:19.2]} 23... Bf6 {[%clk
0:01:28.1]} 24. a4 {[%clk 0:02:11.9]} 24... Rxc1 {[%clk 0:01:17.4]} 25. Rxc1
{[%clk 0:02:12.8]} 25... bxa4 {[%clk 0:01:11]} 26. Bxa6 {[%clk 0:02:11.7]} 26...
Ng4 {[%clk 0:01:02.1]} 27. Rc8 {[%clk 0:01:56.3]} 27... Qe7 {[%clk 0:00:39.7]}
28. Nc6 {[%clk 0:01:50.4]} 28... Qe4 {[%clk 0:00:29]} 29. Bd3 {[%clk 0:01:50.1]}
1-0

[Event "*** Titled Tuesday Blitz"]
[Site "Chess.com"]
[Date "2020.12.29"]
[Round "7"]
[White "vladimirdamjanovic"]
[Black "platy3"]
[Result "0-1"]
[WhiteElo "2414"]
[BlackElo "2857"]
[TimeControl "180+1"]
[EndTime "11:14:49 PST"]
[Termination "platy3 won by resignation"]

1. d4 {[%clk 0:03:00.9]} 1... Nf6 {[%clk 0:02:59.8]} 2. Nc3 {[%clk 0:03:00.9]}
2... d5 {[%clk 0:02:59.5]} 3. Bf4 {[%clk 0:03:00.9]} 3... c6 {[%clk 0:02:58.4]}
4. e3 {[%clk 0:02:59.9]} 4... Bf5 {[%clk 0:02:56.4]} 5. f3 {[%clk 0:02:59.7]}
5... e6 {[%clk 0:02:55.8]} 6. g4 {[%clk 0:02:58.4]} 6... Bg6 {[%clk 0:02:56.2]}
7. h4 {[%clk 0:02:59.1]} 7... h6 {[%clk 0:02:55.9]} 8. Bd3 {[%clk 0:02:56.5]}
8... Bxd3 {[%clk 0:02:55.1]} 9. Qxd3 {[%clk 0:02:57.4]} 9... Bd6 {[%clk
0:02:55.5]} 10. Nge2 {[%clk 0:02:56]} 10... Qe7 {[%clk 0:02:54.5]} 11. O-O-O
{[%clk 0:02:55.2]} 11... Nbd7 {[%clk 0:02:53.1]} 12. Ng3 {[%clk 0:02:07.8]}
12... O-O-O {[%clk 0:02:40.7]} 13. g5 {[%clk 0:02:03.5]} 13... Ne8 {[%clk
0:02:39.1]} 14. Bxd6 {[%clk 0:00:59.9]} 14... Nxd6 {[%clk 0:02:40]} 15. f4
{[%clk 0:01:00.3]} 15... f6 {[%clk 0:02:34.8]} 16. e4 {[%clk 0:00:43.1]} 16...
hxg5 {[%clk 0:02:30]} 17. hxg5 {[%clk 0:00:43]} 17... fxg5 {[%clk 0:02:29.4]}
18. e5 {[%clk 0:00:43]} 18... Nc4 {[%clk 0:02:24.1]} 19. f5 {[%clk 0:00:43]}
19... Qb4 {[%clk 0:02:23.3]} 20. Na4 {[%clk 0:00:17.3]} 20... Qxa4 {[%clk
0:02:21.7]} 21. Qb3 {[%clk 0:00:17.8]} 21... Qxb3 {[%clk 0:02:19.8]} 22. axb3
{[%clk 0:00:18.7]} 22... Ne3 {[%clk 0:02:20.2]} 23. fxe6 {[%clk 0:00:11.8]}
23... Nxd1 {[%clk 0:02:14.3]} 24. exd7+ {[%clk 0:00:12.1]} 24... Kxd7 {[%clk
0:02:15.2]} 25. Rxd1 {[%clk 0:00:12]} 25... Rh3 {[%clk 0:02:14]} 26. Nf5 {[%clk
0:00:10.6]} 26... Rf8 {[%clk 0:02:09.9]} 27. Nxg7 {[%clk 0:00:09.3]} 27... Rh7
{[%clk 0:02:07.4]} 28. e6+ {[%clk 0:00:05.4]} 28... Ke7 {[%clk 0:02:07.1]} 29.
Rh1 {[%clk 0:00:05.2]} 29... Rxh1+ {[%clk 0:02:05.9]} 0-1

[Event "*** Titled Tuesday Blitz"]
[Site "Chess.com"]
[Date "2020.12.29"]
[Round "7"]
[White "MashaFromRussia"]
[Black "Lion-Al-Messi"]
[Result "0-1"]
[WhiteElo "2404"]
[BlackElo "2544"]
[TimeControl "180+1"]
[EndTime "11:14:49 PST"]
[Termination "Lion-Al-Messi won by resignation"]

1. d4 {[%clk 0:03:00.9]} 1... d5 {[%clk 0:02:58.6]} 2. c4 {[%clk 0:03:00.1]}
2... c6 {[%clk 0:02:59]} 3. Nf3 {[%clk 0:02:58.7]} 3... Nf6 {[%clk 0:02:59.4]}
4. Nc3 {[%clk 0:02:56.9]} 4... dxc4 {[%clk 0:02:59.3]} 5. g3 {[%clk 0:02:45.9]}
5... b5 {[%clk 0:02:56]} 6. Bg2 {[%clk 0:02:41.6]} 6... a6 {[%clk 0:02:56.2]} 7.
O-O {[%clk 0:02:40.9]} 7... e6 {[%clk 0:02:55.9]} 8. e4 {[%clk 0:02:40.6]} 8...
Be7 {[%clk 0:02:56.1]} 9. e5 {[%clk 0:02:40.5]} 9... Nd5 {[%clk 0:02:56.1]} 10.
Ne4 {[%clk 0:02:40.9]} 10... h6 {[%clk 0:02:56.3]} 11. h4 {[%clk 0:02:13.2]}
11... Nd7 {[%clk 0:02:52]} 12. a4 {[%clk 0:02:10.1]} 12... Bb7 {[%clk
0:02:50.9]} 13. Qe2 {[%clk 0:02:08]} 13... Qb6 {[%clk 0:02:47.2]} 14. Nd6+
{[%clk 0:01:54.1]} 14... Bxd6 {[%clk 0:02:47.1]} 15. exd6 {[%clk 0:01:55]} 15...
c5 {[%clk 0:02:41.2]} 16. Ne5 {[%clk 0:01:43]} 16... cxd4 {[%clk 0:02:34]} 17.
Nxd7 {[%clk 0:01:22.6]} 17... Kxd7 {[%clk 0:02:34.9]} 18. Qh5 {[%clk 0:01:21.7]}
18... g6 {[%clk 0:02:32.3]} 19. Qe5 {[%clk 0:01:20.9]} 19... d3 {[%clk
0:02:12.8]} 20. Bxd5 {[%clk 0:01:04.6]} 20... Bxd5 {[%clk 0:02:13.7]} 21. Bf4
{[%clk 0:01:02.4]} 21... g5 {[%clk 0:01:57.8]} 22. Be3 {[%clk 0:00:43.4]} 22...
Qxd6 {[%clk 0:01:56.8]} 23. Qg7 {[%clk 0:00:42]} 23... e5 {[%clk 0:01:48.9]} 24.
f4 {[%clk 0:00:17]} 24... gxf4 {[%clk 0:01:44.4]} 25. gxf4 {[%clk 0:00:17.9]}
25... Rag8 {[%clk 0:01:43.1]} 0-1

[Event "*** Titled Tuesday Blitz"]
[Site "Chess.com"]
[Date "2020.12.29"]
[Round "7"]
[White "Susal_De_Silva"]
[Black "ChessLover0108"]
[Result "0-1"]
[WhiteElo "2569"]
[BlackElo "2751"]
[TimeControl "180+1"]
[EndTime "11:14:54 PST"]
[Termination "ChessLover0108 won by resignation"]

1. e4 {[%clk 0:03:00.9]} 1... c5 {[%clk 0:02:48]} 2. Nf3 {[%clk 0:03:00]} 2...
d6 {[%clk 0:02:45]} 3. Bb5+ {[%clk 0:02:59.9]} 3... Bd7 {[%clk 0:02:44.9]} 4.
Bxd7+ {[%clk 0:02:59.7]} 4... Qxd7 {[%clk 0:02:45.8]} 5. c4 {[%clk 0:02:54.5]}
5... Nc6 {[%clk 0:02:44.8]} 6. Nc3 {[%clk 0:02:53.8]} 6... Nf6 {[%clk
0:02:45.1]} 7. d4 {[%clk 0:02:53.6]} 7... cxd4 {[%clk 0:02:46]} 8. Nxd4 {[%clk
0:02:54.3]} 8... g6 {[%clk 0:02:46.9]} 9. f3 {[%clk 0:02:54.2]} 9... Bg7 {[%clk
0:02:47.5]} 10. Be3 {[%clk 0:02:54.2]} 10... O-O {[%clk 0:02:48.2]} 11. O-O
{[%clk 0:02:53.8]} 11... Rfc8 {[%clk 0:02:48.9]} 12. b3 {[%clk 0:02:53.6]} 12...
Qd8 {[%clk 0:02:39.5]} 13. Rc1 {[%clk 0:02:51]} 13... a6 {[%clk 0:02:35.6]} 14.
a4 {[%clk 0:02:48.9]} 14... Nd7 {[%clk 0:02:33.6]} 15. Rf2 {[%clk 0:02:36]}
15... Nc5 {[%clk 0:02:32]} 16. Nxc6 {[%clk 0:02:05.8]} 16... bxc6 {[%clk
0:02:18.3]} 17. b4 {[%clk 0:02:01]} 17... Ne6 {[%clk 0:02:16.4]} 18. a5 {[%clk
0:01:59.3]} 18... Rab8 {[%clk 0:02:14.5]} 19. Rb2 {[%clk 0:01:51.4]} 19... c5
{[%clk 0:02:10.8]} 20. Qa4 {[%clk 0:01:48.2]} 20... cxb4 {[%clk 0:02:05.9]} 21.
Rxb4 {[%clk 0:01:49.1]} 21... Nc5 {[%clk 0:02:06.8]} 22. Bxc5 {[%clk 0:01:36.4]}
22... dxc5 {[%clk 0:02:04.5]} 23. Rxb8 {[%clk 0:01:35.9]} 23... Rxb8 {[%clk
0:02:05.2]} 24. Nd5 {[%clk 0:01:28.4]} 24... e6 {[%clk 0:02:02.6]} 25. Nb6
{[%clk 0:01:26.2]} 25... Qd2 {[%clk 0:02:03.2]} 26. Rd1 {[%clk 0:01:19]} 26...
Qe2 {[%clk 0:02:01]} 27. Qb3 {[%clk 0:01:14.4]} 27... Bd4+ {[%clk 0:01:58.4]}
28. Kh1 {[%clk 0:01:14]} 28... Rd8 {[%clk 0:01:57.5]} 29. Qd3 {[%clk 0:01:13.5]}
29... Qa2 {[%clk 0:01:57.1]} 30. Qd2 {[%clk 0:01:08.7]} 30... Qa3 {[%clk
0:01:53.8]} 31. Qe1 {[%clk 0:00:55.7]} 31... Kg7 {[%clk 0:01:52.9]} 32. h3
{[%clk 0:00:54.9]} 32... Bc3 {[%clk 0:01:52]} 33. Qe2 {[%clk 0:00:50.9]} 33...
Rxd1+ {[%clk 0:01:51.4]} 34. Qxd1 {[%clk 0:00:51.8]} 34... Qxa5 {[%clk 0:01:52]}
35. Na4 {[%clk 0:00:45.4]} 35... Bd4 {[%clk 0:01:51.5]} 0-1